bitfinex/quotes_ETHUSD_20251125
["timestamp","ask_amount","ask_price","bid_price","bid_amount"]
[1764049800420,0.0982,2936.6,2936.5,0.001]
[1764049800801,0.5455,2936.6,2936.5,0.001]
[1764049800997,0.002,2936.8,2936.5,7.27865631]
[1764049801196,0.002,2936.8,2936.7,0.4669]
[1764049801517,0.002,2936.8,2936.7,0.96895182]
[1764049801908,0.002,2936.8,2936.7,9.50782891]
[1764049802114,0.002,2936.8,2936.7,5.57118079]
[1764049802422,0.002,2936.8,2936.7,9.64425339]
[1764049802638,0.002,2936.8,2936.7,9.61020157]
[1764049802823,0.002,2936.8,2936.7,5.70760527]
[1764049803137,0.002,2936.8,2936.7,5.74165709]
[1764049803833,0.002,2936.8,2936.7,5.70760527]
[1764049806836,0.002,2936.8,2936.7,5.74165709]
[1764049807039,0.002,2936.8,2936.7,5.70760527]
[1764049807349,0.002,2936.8,2936.7,5.74165709]
[1764049808219,0.002,2936.8,2936.7,9.64425339]
[1764049808433,0.002,2936.8,2936.7,9.61020157]
[1764049809145,0.002,2936.8,2936.7,5.70760527]
[1764049809316,0.002,2936.8,2936.7,5.74165709]
[1764049809509,0.002,2936.8,2936.7,5.70760527]
[1764049809952,0.002,2936.8,2936.7,5.74165709]
[1764049810561,0.002,2936.8,2936.7,5.70760527]
[1764049812032,0.002,2936.8,2936.7,5.74165709]
[1764049812623,0.002,2936.8,2936.7,5.70760527]
[1764049813553,0.002,2936.8,2936.7,5.74165709]
[1764049813864,0.002,2936.8,2936.7,5.70760527]
[1764049814029,1e-08,2936.9,2936.8,1.340404]
[1764049814236,1e-08,2936.9,2936.8,6.06859441]
[1764049814436,1e-08,2936.9,2936.8,9.5077118]
[1764049814636,1e-08,2936.9,2936.8,9.61007306]
[1764049818276,0.002,2937.0,2936.8,9.61007306]
[1764049818565,0.002,2937.2,2937.1,12.44100965]
[1764049818764,0.002,2937.2,2937.1,13.77400965]
[1764049818936,0.002,2937.2,2937.1,13.91040482]
[1764049819525,0.002,2937.2,2937.1,17.77040482]
[1764049824984,0.1002,2937.2,2937.1,12.34430452]
[1764049825875,0.002,2937.2,2937.1,12.34430452]
[1764049826209,0.002,2937.2,2937.1,16.73020082]
[1764049826395,0.002,2937.2,2937.1,13.29600452]
[1764049826551,0.002,2937.2,2937.1,12.82760452]
[1764049826896,0.002,2937.2,2937.1,13.29600452]
[1764049827399,0.002,2937.2,2937.1,12.34430452]
[1764049827552,0.1002,2937.2,2937.1,12.34430452]
[1764049827748,0.1002,2937.2,2937.1,12.24430452]
[1764049827948,0.002,2937.2,2937.1,12.82760452]
[1764049829248,0.4529,2937.2,2937.1,12.34430452]
[1764049830304,0.4529,2937.2,2937.1,7.61611411]
[1764049831452,0.002,2937.2,2937.1,8.14201041]
[1764049831856,0.002,2937.2,2937.1,8.61041041]
[1764049832072,0.002,2937.2,2937.1,7.65871041]
[1764049832073,0.1002,2937.2,2937.1,7.65871041]
[1764049832997,0.4493,2937.5,2937.1,7.65871041]
[1764049832998,0.002,2937.8,2937.5,0.1]
[1764049833159,0.002,2937.8,2937.6,0.215]
[1764049833356,0.4529,2937.8,2937.7,3.40402355]
[1764049833956,0.5511,2937.8,2937.7,3.40402355]
[1764049834595,0.5511,2937.8,2937.6,0.215]
[1764049834791,0.4529,2937.8,2937.6,0.215]
[1764049835091,0.4529,2937.8,2937.6,3.61911973]
[1764049835092,0.0982,2937.7,2937.6,3.61911973]
[1764049835887,0.002,2937.8,2937.6,7.50655916]
[1764049836188,0.002,2937.8,2937.7,3.93663653]
[1764049836657,0.002,2937.8,2937.7,4.41993653]
[1764049836859,0.002,2937.8,2937.7,4.88833653]
[1764049837368,0.4529,2937.8,2937.7,7.30661985]
[1764049837655,0.002,2937.8,2937.7,8.81285926]
[1764049840294,0.6294,2937.8,2937.7,4.42696296]
[1764049840483,0.6294,2937.8,2937.7,3.61902355]
[1764049841483,0.6294,2937.8,2937.7,7.52161985]
[1764049842289,0.002,2937.8,2937.7,8.47331985]
[1764049842493,0.002,2937.8,2937.7,8.00491985]
[1764049842800,0.002,2937.8,2937.7,8.57331985]
[1764049843574,0.002,2937.8,2937.7,9.02421985]
[1764049843984,0.002,2937.8,2937.7,8.57331985]
[1764049845103,0.002,2937.8,2937.7,8.10491985]
[1764049845306,0.002,2937.8,2937.7,8.57331985]
[1764049846994,0.002,2937.8,2937.7,12.47591615]
[1764049847199,0.002,2937.8,2937.7,8.57331985]
[1764049847895,0.002,2937.8,2937.7,8.00491985]
[1764049848491,0.002,2937.8,2937.7,12.37591615]
[1764049848691,0.002,2937.8,2937.7,9.29891396]
[1764049849306,0.002,2937.8,2937.7,13.15891396]
[1764049849991,0.002,2937.8,2937.7,17.06151026]
[1764049850313,0.002,2937.8,2937.7,13.15891396]
[1764049850681,0.002,2937.8,2937.7,13.60981396]
[1764049851184,0.002,2937.8,2937.7,17.91791426]
[1764049851608,0.002,2938.1,2938.0,0.505504]
[1764049851806,0.002,2938.1,2938.0,5.62823116]
[1764049852043,0.002,2938.1,2938.0,6.12323116]
[1764049852617,0.002,2938.1,2938.0,6.71403116]
[1764049852816,0.002,2938.1,2938.0,10.11770713]
[1764049853154,0.002,2938.1,2938.0,10.08367038]
[1764049853355,0.002,2938.1,2938.0,10.29867038]
[1764049855331,0.1381,2939.2,2939.1,3.9025963]
[1764049855513,0.1381,2939.2,2939.1,4.1175963]
[1764049855716,0.6836,2939.2,2939.1,4.1175963]
[1764049856013,0.2363,2939.2,2939.1,4.1175963]
[1764049856215,0.1381,2939.3,2939.1,4.1175963]
[1764049856435,0.0982,2939.2,2939.1,4.1175963]
[1764049857039,0.4509,2939.7,2939.2,6.90457266]
[1764049857554,0.0982,2939.3,2939.2,3.50228633]
[1764049858859,0.0982,2939.3,2939.2,3.40228633]
[1764049859067,0.5455,2939.3,2939.2,7.30488263]
[1764049860763,0.0982,2939.3,2939.2,3.40228633]
[1764049862462,0.5455,2939.3,2939.2,3.61728633]
[1764049863038,0.1002,2939.3,2939.2,3.61728633]
[1764049864663,0.5475,2939.3,2939.2,3.61728633]
[1764049865036,0.5475,2939.3,2939.2,3.40228633]
[1764049865366,0.5475,2939.3,2939.2,3.61728633]
[1764049871852,0.1002,2939.3,2939.2,7.37287181]
[1764049872047,0.002,2939.3,2939.2,7.37287181]
[1764049872543,0.1002,2939.3,2939.2,7.37287181]
[1764049872740,0.002,2939.3,2939.2,7.82777181]
[1764049873243,0.002,2939.3,2939.2,8.31347181]
[1764049874475,0.002,2939.3,2939.2,7.82777181]
[1764049874675,0.002,2939.3,2939.2,7.37287181]
[1764049876657,0.1002,2939.3,2939.2,7.37287181]
[1764049876856,0.002,2939.3,2939.2,7.37287181]
[1764049877191,0.1036,2939.3,2939.2,7.37287181]
[1764049877358,0.5475,2939.3,2939.2,7.37287181]
[1764049878271,0.1036,2939.3,2939.2,7.37287181]
[1764049878882,0.5475,2939.3,2939.2,3.61728633]
[1764049882278,0.1036,2939.3,2939.2,3.61728633]
[1764049882478,0.5475,2939.3,2939.2,3.61728633]
[1764049886905,0.1036,2939.3,2939.2,3.61728633]
[1764049889584,0.002,2939.3,2939.2,3.61728633]
[1764049889785,0.002,2939.3,2939.2,4.57198633]
[1764049890116,0.002,2939.3,2939.2,3.61728633]
[1764049890117,0.5475,2939.3,2939.2,3.61728633]
[1764049894302,0.002,2939.3,2939.2,3.61728633]
[1764049894504,0.1002,2939.3,2939.2,3.61728633]
[1764049896319,0.5475,2939.3,2939.2,3.61728633]
[1764049896834,0.1002,2939.3,2939.2,3.61728633]
[1764049897427,0.002,2939.3,2939.2,3.61728633]
[1764049898333,0.002,2939.3,2939.2,4.09798633]
[1764049898511,0.1002,2939.3,2939.2,3.61728633]
[1764049901031,0.002,2939.3,2939.2,3.61728633]
[1764049901954,0.1002,2939.3,2939.2,3.61728633]
[1764049902496,0.002,2939.3,2939.2,4.09798633]
[1764049903319,0.002,2939.3,2939.2,3.61728633]
[1764049904342,0.002,2939.3,2939.2,4.43748044]
[1764049904856,0.5475,2939.3,2939.2,4.43748044]
[1764049906042,0.5475,2939.3,2939.2,4.22248044]
[1764049906244,0.5475,2939.3,2939.2,4.43748044]
[1764049907532,0.1002,2939.3,2939.2,4.43748044]
[1764049908128,0.002,2939.3,2939.2,4.43748044]
[1764049909260,0.002,2939.3,2939.2,5.39218044]
[1764049909557,0.002,2939.3,2939.2,5.4262033]
[1764049909721,0.002,2939.3,2939.2,5.5262033]
[1764049910123,0.4529,2939.3,2939.2,4.22248044]
[1764049910350,0.5511,2939.3,2939.2,4.43748044]
[1764049910738,0.4529,2939.3,2939.2,4.43748044]
[1764049912866,0.002,2939.3,2939.2,5.4427033]
[1764049913552,0.002,2939.3,2939.2,5.40868044]
[1764049919339,0.002,2939.3,2939.2,4.22248044]
[1764049919542,0.002,2939.3,2939.2,4.43748044]
[1764049919543,0.1002,2939.3,2939.2,4.43748044]
[1764049920056,0.002,2939.3,2939.2,4.43748044]
[1764049920232,0.002,2939.3,2939.2,4.89818044]
[1764049920633,0.002,2939.3,2939.2,8.79260043]
[1764049923780,0.4529,2939.3,2939.2,4.22248044]
[1764049923941,0.4529,2939.3,2939.2,8.33190043]
[1764049924543,0.002,2939.3,2939.2,8.33190043]
[1764049924954,0.002,2939.3,2939.2,8.79260043]
[1764049926388,0.002,2939.3,2939.2,14.38181853]
[1764049926616,0.31896046,2940.8,2939.5,0.4607]
[1764049926908,0.0783,2941.1,2940.5,3.89441999]
[1764049926909,0.4509,2940.7,2940.5,3.89441999]
[1764049927215,0.0982,2940.6,2940.3,3.89441999]
[1764049927372,0.4509,2940.7,2939.9,3.89441999]
[1764049927693,7.37281433,2941.1,2939.9,3.89441999]
[1764049927694,0.4509,2940.6,2939.9,3.89441999]
[1764049927898,0.4509,2940.6,2940.0,0.215]
[1764049928434,0.0982,2940.1,2940.0,0.215]
[1764049928930,0.0982,2940.1,2940.0,1.23721094]
[1764049929379,0.0982,2940.1,2940.0,5.13163093]
[1764049929783,0.4473,2940.4,2940.0,8.53299147]
[1764049929983,0.4509,2940.6,2940.2,3.89441999]
[1764049930314,0.0982,2940.3,2940.0,4.42357148]
[1764049930613,0.4509,2940.6,2940.0,4.42357148]
[1764049930801,0.0982,2940.1,2940.0,4.42357148]
[1764049931312,0.4473,2940.5,2940.0,4.42357148]
[1764049931313,0.4509,2940.5,2940.0,8.03993202]
[1764049931514,0.4509,2940.5,2940.1,3.89441999]
[1764049931881,0.4509,2940.5,2940.2,6.80225834]
[1764049932180,0.4509,2940.5,2940.3,3.89441999]
[1764049932381,0.4509,2940.5,2940.4,0.215]
[1764049932575,0.5491,2940.5,2940.4,0.215]
[1764049935512,0.5491,2940.5,2940.4,3.61589783]
[1764049935716,0.4509,2940.5,2940.4,3.61589783]
[1764049937622,0.4529,2940.5,2940.4,3.61589783]
[1764049937822,0.002,2940.5,2940.4,3.61589783]
[1764049938206,0.002,2940.5,2940.4,4.07659783]
[1764049938519,0.002,2940.5,2940.4,4.52749783]
[1764049938921,0.1002,2940.5,2940.4,4.06679783]
[1764049939222,0.1002,2940.5,2940.4,3.85179783]
[1764049939391,0.1002,2940.5,2940.4,4.06679783]
[1764049939785,0.1036,2940.5,2940.4,4.06679783]
[1764049940020,0.002,2940.5,2940.4,4.06679783]
[1764049940186,0.002,2940.5,2940.4,5.04369783]
[1764049940701,0.1002,2940.5,2940.4,4.06679783]
[1764049941407,0.1002,2940.5,2940.4,3.85179783]
[1764049941614,0.1002,2940.5,2940.4,4.06679783]
[1764049941796,0.002,2940.5,2940.4,4.55949783]
[1764049941998,0.1002,2940.5,2940.4,4.06679783]
[1764049942623,0.4529,2940.5,2940.4,4.06679783]
[1764049943940,0.5511,2940.5,2940.4,4.06679783]
[1764049944228,0.5511,2940.5,2940.4,3.61589783]
[1764049944229,0.4529,2940.5,2940.4,3.61589783]
[1764049944739,0.4529,2940.5,2940.3,4.42312769]
[1764049944740,0.5511,2940.5,2940.3,4.42312769]
[1764049944937,0.1002,2940.5,2940.4,0.215]
[1764049945536,0.4493,2940.5,2940.4,0.215]
[1764049946044,0.5509,2940.5,2940.4,0.215]
[1764049946404,0.5509,2940.5,2940.4,3.61589783]
[1764049946917,0.5509,2940.5,2940.1,3.40124485]
[1764049947104,0.4509,2940.4,2940.2,0.215]
[1764049947514,0.4509,2940.4,2940.1,7.82470412]
[1764049947515,0.0982,2940.3,2940.1,7.82470412]
[1764049947703,0.4509,2940.4,2940.2,0.215]
[1764049948112,0.0982,2940.3,2940.2,0.215]
[1764049948638,0.002,2940.5,2940.2,11.40437833]
[1764049948804,0.002,2940.5,2940.2,11.88857833]
[1764049949862,0.002,2940.5,2940.2,11.40437833]
[1764049950637,0.002,2940.5,2940.2,3.61612917]
[1764049950638,0.0982,2940.3,2940.2,3.61612917]
[1764049953067,0.002,2940.5,2940.2,3.40112917]
[1764049953368,0.002,2940.5,2940.2,7.01725834]
[1764049953842,0.0982,2940.3,2940.2,3.61612917]
[1764049955464,0.5455,2940.3,2940.2,3.61612917]
[1764049956235,0.5455,2940.3,2940.1,0.5455]
[1764049956465,0.4473,2940.3,2940.2,0.215]
[1764049956767,0.002,2940.5,2940.2,0.215]
[1764049956934,0.4509,2940.3,2940.2,0.215]
[1764049957571,0.002,2940.5,2940.2,3.61612917]
[1764049957774,0.0982,2940.3,2940.2,3.61612917]
[1764049958476,0.5455,2940.3,2940.2,3.61612917]
[1764049958774,0.0982,2940.3,2940.2,3.61612917]
[1764049962940,0.002,2940.5,2940.2,3.61612917]
[1764049963140,0.0982,2940.3,2940.2,3.61612917]
[1764049963959,0.5455,2940.3,2940.2,0.215]
[1764049965097,0.0982,2940.3,2940.2,0.215]
[1764049965564,0.5455,2940.3,2940.2,0.215]
[1764049965764,0.5455,2940.3,2939.9,3.40146902]
[1764049965994,0.4473,2940.3,2940.0,0.215]
[1764049966190,0.1016,2940.1,2940.0,0.215]
[1764049966590,0.1016,2940.1,2939.5,4.37961999]
[1764049966591,0.5455,2940.1,2939.6,3.40179494]
[1764049966776,0.0044,2940.0,2939.7,0.215]
[1764049967088,0.0044,2940.0,2939.8,3.40159194]
[1764049967490,0.1007,2939.9,2939.8,3.40159194]
[1764049967704,0.4509,2940.3,2939.8,3.40159194]
[1764049967910,0.4509,2940.2,2939.8,3.40159194]
[1764049968061,0.1928,2939.9,2939.5,0.001]
[1764049968396,0.0982,2939.6,2939.5,0.216]
[1764049968778,0.5455,2939.6,2939.5,0.216]
[1764049969296,0.0982,2939.6,2939.5,0.216]
[1764049969472,0.0982,2939.6,2939.5,0.11561952]
[1764049970310,1.27109411,2939.6,2939.3,0.001]
[1764049970496,0.4473,2939.6,2939.5,0.215]
[1764049970697,4.12722928,2939.8,2939.5,0.215]
[1764049970876,0.0982,2939.6,2939.5,0.215]
[1764049971699,0.82379411,2939.6,2939.5,0.215]
[1764049972804,4.22561748,2939.6,2939.5,0.215]
[1764049973013,1.27109411,2939.6,2939.5,0.215]
[1764049973714,4.67291748,2939.6,2939.5,0.215]
[1764049973918,4.67291748,2939.6,2939.3,0.001]
[1764049974120,0.4509,2939.4,2939.3,0.001]
[1764049974790,0.5491,2939.4,2939.3,0.001]
[1764049976414,0.4509,2939.4,2939.3,0.001]
[1764049977317,0.72759411,2939.6,2939.3,8.27409057]
[1764049977490,0.72759411,2939.6,2939.3,0.4813]
[1764049977685,0.72759411,2939.6,2939.3,0.001]
[1764049977887,0.72759411,2939.6,2939.4,0.215]
[1764049978296,0.0982,2939.5,2939.4,0.215]
[1764049978513,0.72759411,2939.6,2939.5,0.4803]
[1764049979994,0.72759411,2939.6,2939.5,0.9765]
[1764049980523,0.72759411,2939.6,2939.5,0.4803]
[1764049980820,0.72759411,2939.6,2939.4,0.215]
[1764049982430,0.0982,2939.5,2939.4,0.215]
[1764049982722,0.0982,2939.5,2939.3,0.001]
[1764049982723,3.98148024,2939.5,2939.3,0.001]
[1764049983032,4.58426234,2939.4,2939.3,0.001]
[1764049983198,5.02816234,2939.4,2939.3,0.001]
[1764049983822,5.43366634,2939.4,2939.3,0.001]
[1764049984142,5.78561755,2939.4,2939.3,0.001]
[1764049984339,5.78561755,2939.4,2939.1,0.001]
[1764049984340,0.405504,2939.3,2939.1,0.001]
[1764049984636,1.13109811,2939.0,2938.2,0.215]
[1764049984798,4.98196634,2939.0,2938.2,0.215]
[1764049984995,1.67579811,2939.0,2938.0,0.001]
[1764049985193,1.67579811,2939.0,2938.1,0.215]
[1764049985194,5.43286634,2939.0,2938.1,0.215]
[1764049986331,5.43286634,2939.0,2938.0,0.001]
[1764049986493,8.8353842,2939.0,2938.0,0.001]
[1764049987151,9.15286798,2939.0,2938.0,0.001]
[1764049989332,9.28928641,2939.0,2938.0,0.001]
[1764049990162,8.97180263,2939.0,2938.0,0.001]
[1764049990536,9.28871647,2939.0,2938.0,0.001]
[1764049991143,8.97180263,2939.0,2938.0,0.001]
[1764049991341,9.28866506,2939.0,2938.0,0.001]
[1764049992745,8.97180263,2939.0,2938.0,0.001]
[1764049992946,9.28863995,2939.0,2938.0,0.001]
[1764049993347,9.28863995,2939.0,2938.6,0.001]
[1764049996655,8.88313595,2939.0,2938.6,0.001]
[1764049996857,9.09813595,2939.0,2937.7,2.98318908]
[1764049997082,9.09813595,2939.0,2937.6,3.40508554]
[1764049997083,0.4965,2938.7,2937.6,3.40508554]
[1764049997283,0.72559411,2938.6,2937.6,3.40508554]
[1764049997585,1.18349411,2938.6,2937.6,3.40508554]
[1764049998049,1.2175148,2938.6,2937.6,3.40508554]
[1764049998578,1.18349411,2938.6,2937.6,3.40508554]
[1764049998983,0.72559411,2938.4,2937.7,0.4962]
[1764049999767,0.72559411,2938.4,2937.7,3.90020696]
[1764050000086,0.72559411,2938.4,2937.8,0.4693]
[1764050000652,0.72559411,2938.4,2938.3,0.4719]
[1764050001453,4.12880674,2938.4,2938.3,0.4719]
[1764050003208,7.98801937,2938.4,2938.1,0.5667]
[1764050004287,7.98801937,2938.4,2937.6,3.40508498]
[1764050004489,7.98801937,2938.4,2937.9,0.4693]
[1764050006823,7.53201937,2938.4,2937.9,0.4693]
[1764050009224,0.456,2938.0,2937.7,0.215]
[1764050009594,0.456,2938.0,2937.7,0.6843]
[1764050009795,0.4623,2938.3,2937.7,0.6843]
[1764050010022,10.935232,2938.4,2937.9,0.4719]
[1764050010221,0.03402069,2938.3,2937.9,0.4719]
[1764050010432,0.72559411,2938.1,2937.9,0.4719]
[1764050010723,0.7596148,2938.1,2937.9,0.4719]
[1764050010927,1.2219148,2938.1,2937.7,0.215]
[1764050011235,1.2219148,2938.1,2937.7,0.6843]
[1764050011717,0.72559411,2938.1,2937.7,0.215]
[1764050011921,1.18789411,2938.1,2937.7,0.215]
[1764050012318,3.40379182,2937.9,2937.7,0.215]
[1764050012525,3.40379182,2937.9,2937.6,0.216]
[1764050012839,0.72559411,2937.9,2937.8,0.4719]
[1764050014525,0.72559411,2937.9,2937.8,0.9412]
[1764050014717,0.72559411,2937.9,2937.8,0.4719]
[1764050015235,4.12938593,2937.9,2937.8,0.4719]
[1764050015399,4.58538593,2937.9,2937.6,0.216]
[1764050015835,1.18159411,2937.9,2937.6,0.6853]
[1764050016136,0.72559411,2937.9,2937.6,0.6853]
[1764050016455,0.72559411,2937.9,2937.8,0.4719]
[1764050016810,0.72559411,2937.9,2937.6,0.6853]
[1764050018555,0.72559411,2937.9,2937.8,0.4719]
[1764050019035,3.40527326,2938.4,2937.8,0.9412]
[1764050019243,3.40528764,2938.4,2938.0,0.4719]
[1764050019555,6.80857528,2938.4,2938.0,0.4719]
[1764050019752,7.27087528,2938.4,2938.0,0.4719]
[1764050020042,0.4623,2938.3,2938.0,0.4719]
[1764050020221,0.03402069,2938.2,2938.0,0.4719]
[1764050020632,3.43748271,2938.2,2938.0,0.4719]
[1764050021034,3.40346202,2938.2,2938.0,0.4719]
[1764050021431,3.86568001,2938.3,2938.0,0.4719]
[1764050021733,0.002,2938.4,2938.2,0.4719]
[1764050021934,0.002,2938.4,2938.3,0.4719]
[1764050022135,4.13080674,2938.4,2938.3,0.4719]
[1764050022514,4.13080674,2938.4,2938.1,0.5626]
[1764050023127,0.72759411,2938.4,2938.1,0.5626]
[1764050024260,0.72759411,2938.4,2938.3,0.4719]
[1764050024614,0.72759411,2938.4,2938.3,0.9412]
[1764050024844,0.72759411,2938.4,2938.3,0.4719]
[1764050025143,0.72559411,2938.3,2937.8,1.02291151]
[1764050025342,0.2704,2938.2,2937.9,0.215]
[1764050025546,0.03402069,2938.1,2937.9,0.215]
[1764050025717,0.4541,2938.0,2937.9,0.215]
[1764050026450,0.4541,2938.0,2937.6,0.4703]
[1764050026451,0.4541,2938.0,2937.8,0.215]
[1764050026612,0.03402069,2937.9,2937.6,0.4703]
[1764050026942,0.03402069,2937.9,2937.7,0.215]
[1764050027142,0.7596148,2937.9,2937.6,0.4703]
[1764050027345,0.7596148,2937.9,2937.7,0.215]
[1764050027647,3.43782782,2937.9,2937.7,0.215]
[1764050027846,0.03402069,2937.9,2937.7,0.215]
[1764050028027,0.72559411,2937.8,2937.7,0.215]
[1764050028424,1.18159411,2937.8,2937.6,0.001]
[1764050028645,0.2704,2937.7,2937.6,0.216]
[1764050029217,4.86231766,2937.7,2937.6,0.001]
[1764050033024,4.89633835,2937.7,2937.6,0.001]
[1764050033822,5.30184235,2937.7,2937.6,0.001]
[1764050034024,5.58676864,2937.7,2937.6,0.001]
[1764050034558,5.18126464,2937.7,2937.6,0.001]
[1764050036343,4.86231766,2937.7,2937.6,0.001]
[1764050036543,5.18095125,2937.7,2937.6,0.001]
[1764050037144,5.21497194,2937.7,2937.6,0.001]
[1764050037547,5.62047594,2937.7,2937.6,0.001]
[1764050039273,5.12415525,2937.7,2937.6,0.001]
[1764050039479,5.58345525,2937.7,2937.6,0.001]
[1764050040486,5.61747594,2937.7,2937.6,0.001]
[1764050042551,9.51981864,2937.7,2937.6,0.001]
[1764050042753,9.48579795,2937.7,2937.6,0.001]
[1764050045154,9.48069244,2937.7,2937.6,0.001]
[1764050046587,13.06869244,2937.7,2937.6,0.001]
[1764050046802,9.48069244,2937.7,2937.6,0.001]
[1764050047674,9.29018844,2937.7,2937.6,0.001]
[1764050047871,8.83088844,2937.7,2937.6,0.001]
[1764050048198,8.97155485,2937.7,2937.6,0.001]
[1764050048896,8.24696036,2937.7,2937.6,0.4729]
[1764050049085,4.12961766,2937.7,2937.6,0.4729]
[1764050049291,0.72559411,2937.7,2937.6,0.9288]
[1764050049491,0.002,2937.8,2937.6,0.9288]
[1764050049689,0.002,2937.8,2937.7,0.9278]
[1764050050200,0.002,2937.8,2937.7,1.1428]
[1764050050810,0.002,2937.8,2937.7,4.54682355]
[1764050061621,0.002,2937.8,2937.7,4.33182355]
[1764050061823,0.002,2937.8,2937.7,1.1428]
[1764050062911,0.002,2937.8,2937.7,4.54682355]
[1764050064625,0.002,2937.8,2937.7,4.09092355]
[1764050064830,0.002,2937.8,2937.7,1.1647]
[1764050065413,0.002,2937.8,2937.7,4.56872355]
[1764050070847,0.002,2937.8,2937.7,1.1647]
[1764050071236,0.002,2937.8,2937.7,4.56872355]
[1764050076322,0.002,2937.8,2937.7,4.09092355]
[1764050077241,0.002,2937.8,2937.7,4.56872355]
[1764050077442,0.002,2937.8,2937.7,4.09092355]
[1764050078072,0.002,2937.8,2937.7,4.56872355]
[1764050078572,0.488,2937.8,2937.7,0.215]
[1764050079273,0.488,2937.8,2937.6,0.001]
[1764050079481,0.6428,2937.7,2937.6,0.001]
[1764050079675,0.002,2937.8,2937.6,0.001]
[1764050079864,0.002,2937.8,2937.7,0.4889]
[1764050080652,0.002,2937.8,2937.6,0.001]
[1764050080858,0.488,2937.8,2937.6,0.001]
[1764050082074,0.0794,2937.7,2937.6,0.001]
[1764050083463,0.002,2937.8,2937.6,0.4899]
[1764050084186,0.486,2937.7,2937.6,0.001]
[1764050084413,0.002,2937.8,2937.6,0.001]
[1764050084709,0.002,2937.8,2937.7,0.4889]
[1764050087419,0.488,2937.8,2937.6,0.001]
[1764050088192,1.21359411,2937.8,2937.6,0.001]
[1764050088388,0.488,2937.8,2937.6,0.001]
[1764050088591,0.002,2937.8,2937.6,0.001]
[1764050088916,0.002,2937.8,2937.7,0.4889]
[1764050089683,0.002,2937.8,2937.7,0.9667]
[1764050090280,0.002,2937.8,2937.7,4.37072355]
[1764050091514,0.002,2937.8,2937.7,8.27306625]
[1764050091726,0.002,2937.8,2937.7,4.37072355]
[1764050094630,0.002,2937.8,2937.7,4.37002355]
[1764050094991,0.002,2937.8,2937.7,0.966]
[1764050095196,0.002,2937.8,2937.7,4.37002355]
[1764050096344,0.4543,2937.8,2937.6,0.001]
[1764050096640,0.9485,2937.7,2937.6,0.001]
[1764050097295,5.07811766,2937.7,2937.6,0.216]
[1764050097739,5.07811766,2937.7,2937.6,0.001]
[1764050102629,9.16030505,2937.7,2937.6,0.001]
[1764050104116,0.405504,2937.3,2937.2,0.001]
[1764050104316,8.77467139,2937.3,2937.2,0.001]
[1764050104543,9.56307261,2937.3,2937.2,0.001]
[1764050104726,9.69955621,2937.3,2937.2,0.001]
[1764050105121,9.56307261,2937.3,2937.2,0.001]
[1764050106638,13.71811361,2937.3,2937.2,0.001]
[1764050107186,11.82325061,2937.3,2937.2,0.001]
[1764050107503,9.56307261,2937.3,2937.2,0.001]
[1764050108185,11.79523061,2937.3,2937.2,0.001]
[1764050111376,11.79396669,2937.3,2937.2,0.001]
[1764050112279,9.69830766,2937.3,2937.2,0.001]
[1764050113377,11.72329566,2937.3,2937.2,0.001]
[1764050113849,9.69830766,2937.3,2937.2,0.001]
[1764050114902,9.56150438,2937.3,2937.2,0.001]
[1764050115380,11.58349238,2937.3,2937.2,0.001]
[1764050115709,9.56150438,2937.3,2937.2,0.001]
[1764050117593,16.58872238,2937.3,2937.2,0.001]
[1764050117772,14.99850239,2937.3,2937.2,0.001]
[1764050117973,15.31600183,2937.3,2937.2,0.001]
[1764050118174,15.4525157,2937.3,2937.2,0.001]
[1764050118575,15.7021747,2937.3,2937.2,0.001]
[1764050118770,11.7896727,2937.3,2937.2,0.001]
[1764050118976,9.6979847,2937.3,2937.2,0.001]
[1764050119908,11.6994057,2937.3,2937.2,0.001]
[1764050120500,9.6979847,2937.3,2937.2,0.001]
[1764050121912,9.5072807,2937.3,2937.2,0.001]
[1764050122119,9.9127847,2937.3,2937.2,0.001]
[1764050122432,13.7686557,2937.3,2937.2,0.001]
[1764050122821,9.9127847,2937.3,2937.2,0.001]
[1764050124421,5.06009453,2937.3,2937.2,0.001]
[1764050124625,9.40478752,2937.3,2937.2,0.001]
[1764050124798,8.64517272,2937.3,2937.2,0.001]
[1764050125125,9.37076683,2937.3,2937.2,0.001]
[1764050130110,9.37276683,2937.3,2937.2,0.001]
[1764050130405,9.77827083,2937.3,2937.2,0.001]
[1764050130615,15.90611883,2937.3,2937.2,0.001]
[1764050130928,16.04261267,2937.3,2937.2,0.001]
[1764050131435,15.69783767,2937.3,2937.2,0.001]
[1764050131927,10.64902067,2937.3,2937.2,0.001]
[1764050132128,9.35242683,2937.3,2937.2,0.4724]
[1764050132347,9.56742683,2937.3,2937.2,0.4724]
[1764050132999,9.56742683,2937.3,2937.2,0.001]
[1764050133433,10.02742683,2937.3,2937.2,0.001]
[1764050133927,10.49652683,2937.3,2937.2,0.001]
[1764050134130,12.52206683,2937.3,2937.2,0.001]
[1764050134329,12.30706683,2937.3,2937.2,0.001]
[1764050134535,10.49652683,2937.3,2937.2,0.001]
[1764050135836,12.52452683,2937.3,2937.2,0.001]
[1764050136038,6.11293666,2937.3,2937.2,0.001]
[1764050136206,10.12504352,2937.3,2937.2,0.001]
[1764050136531,12.53234483,2937.3,2937.2,0.001]
[1764050136732,17.76686498,2937.3,2937.2,0.001]
[1764050136937,17.90335836,2937.3,2937.2,0.001]
[1764050137341,16.40917636,2937.3,2937.2,0.001]
[1764050137536,14.58054036,2937.3,2937.2,0.001]
[1764050137708,11.55221636,2937.3,2937.2,0.001]